bitfinex-derivatives/quotes_ETHF0:USTF0_20250701
["timestamp","ask_amount","ask_price","bid_price","bid_amount"]
[1751367950856,9.127343,2457.9,2457.8,41.58182479]
[1751367951553,8.313833,2457.9,2457.8,41.58182479]
[1751367951758,9.127343,2457.9,2457.8,41.58182479]
[1751367951957,8.313833,2457.9,2457.8,41.58182479]
[1751367952850,9.127343,2457.9,2457.8,41.58182479]
[1751367954465,9.127343,2457.9,2457.8,40.76830479]
[1751367956465,9.127343,2457.9,2457.8,41.58184479]
[1751367956666,9.127343,2457.9,2457.8,40.76830479]
[1751367957163,9.127343,2457.9,2457.8,41.58184479]
[1751367958056,8.313833,2457.9,2457.8,41.58184479]
[1751367958261,8.313833,2457.9,2457.8,42.79716171]
[1751367961168,8.313833,2457.9,2457.8,41.58184479]
[1751367962060,8.313833,2457.9,2457.8,43.20226736]
[1751367962565,8.313833,2457.9,2457.8,41.58184479]
[1751367963264,9.127343,2457.9,2457.8,41.58184479]
[1751367963964,8.313833,2457.9,2457.8,41.58184479]
[1751367965467,9.127343,2457.9,2457.8,41.58184479]
[1751367965664,8.313833,2457.9,2457.8,41.58184479]
[1751367967268,9.127343,2457.9,2457.8,39.24374]
[1751367967465,9.127343,2457.9,2457.8,41.58184479]
[1751367967969,8.313833,2457.9,2457.8,41.58184479]
[1751367970268,8.313833,2457.9,2457.8,43.20226736]
[1751367975671,8.313833,2457.9,2457.8,41.58184479]
[1751367976369,8.313833,2457.9,2457.8,43.20887167]
[1751367982671,8.313833,2457.9,2457.8,101.80987167]
[1751367983875,9.127333,2457.9,2457.8,101.80987167]
[1751367984072,9.127333,2457.9,2457.8,61.96785688]
[1751367984274,9.127333,2457.9,2457.8,97.18655688]
[1751367984876,8.313833,2457.9,2457.8,97.18655688]
[1751367985078,9.127333,2457.9,2457.8,97.18655688]
[1751367985877,9.127333,2457.9,2457.8,95.55953]
[1751367987779,8.313833,2457.9,2457.8,95.55953]
[1751367988380,9.127333,2457.9,2457.8,95.55953]
[1751367988981,8.313833,2457.9,2457.8,95.55953]
[1751367989782,9.127333,2457.9,2457.8,95.55953]
[1751367990485,9.127333,2457.9,2457.8,96.77990232]
[1751367990683,9.127333,2457.9,2457.8,96.77890232]
[1751367991082,8.313833,2457.9,2457.8,96.77890232]
[1751367991477,9.127333,2457.9,2457.8,96.77890232]
[1751367992986,9.127333,2457.9,2457.8,72.10390232]
[1751367993187,9.127333,2457.9,2457.8,95.96437232]
[1751367993386,9.127333,2457.9,2457.8,96.77790232]
[1751367995593,9.127333,2457.9,2457.8,72.10390232]
[1751367995900,9.127333,2457.9,2457.8,60.63490232]
[1751367996085,9.127333,2457.9,2457.8,96.77790232]
[1751367996788,9.127333,2457.9,2457.8,60.63490232]
[1751367996992,9.127333,2457.9,2457.8,96.77690232]
[1751367997598,9.127333,2457.9,2457.8,60.63490232]
[1751367997796,9.127333,2457.9,2457.8,96.77690232]
[1751367999000,8.313833,2457.9,2457.8,96.77690232]
[1751368000502,8.313833,2457.9,2457.8,95.55653]
[1751368001596,9.127333,2457.9,2457.8,95.55653]
[1751368001798,9.127333,2457.9,2457.8,96.77657156]
[1751368001998,9.127333,2457.9,2457.8,59.82104156]
[1751368002194,9.127333,2457.9,2457.8,95.96204156]
[1751368002394,9.127333,2457.9,2457.8,59.82104156]
[1751368002600,10.491433,2457.9,2457.8,95.96204156]
[1751368003306,10.491433,2457.9,2457.8,94.742]
[1751368004800,9.127333,2457.9,2457.8,94.742]
[1751368010706,9.127333,2457.9,2457.8,58.601]
[1751368010906,9.127333,2457.9,2457.8,94.739]
[1751368012109,9.127333,2457.9,2457.8,97.89063479]
[1751368012803,9.127333,2457.9,2457.8,98.64403479]
[1751368013203,9.127333,2457.9,2457.8,100.00753479]
[1751368014511,9.127333,2457.9,2457.8,99.19400479]
[1751368023308,9.127333,2457.9,2457.8,60.7179]
[1751368023519,9.127333,2457.9,2457.8,96.8529]
[1751368025416,9.127333,2457.9,2457.8,72.1849]
[1751368025612,9.127333,2457.9,2457.8,96.8529]
[1751368026916,9.127333,2457.9,2457.8,38.2519]
[1751368027606,9.127333,2457.9,2457.8,40.59000479]
[1751368028917,9.127333,2457.9,2457.8,13.5839]
[1751368029111,9.127333,2457.9,2457.8,38.2509]
[1751368030117,9.127333,2457.9,2457.8,2.1169]
[1751368030318,9.127333,2457.9,2457.8,36.8874]
[1751368034118,9.127333,2457.9,2457.8,0.7534]
[1751368034320,0.81356,2457.7,2457.6,1.97514156]
[1751368034616,0.81356,2457.7,2457.6,38.10714156]
[1751368034818,0.81356,2457.7,2457.6,36.8871]
[1751368035329,9.127393,2457.7,2457.6,36.8871]
[1751368038220,9.127393,2457.7,2457.6,39.22520479]
[1751368038715,8.313833,2457.7,2457.6,40.03880479]
[1751368038919,8.313833,2457.7,2457.6,43.39644635]
[1751368039218,0.8134,2458.3,2458.2,0.81337]
[1751368039423,0.8134,2458.3,2458.2,39.27847479]
[1751368040621,0.8134,2458.3,2458.2,40.63187479]
[1751368042325,9.127233,2458.3,2458.2,40.63187479]
[1751368043322,9.127193,2458.3,2458.2,40.63187479]
[1751368044726,9.127193,2458.3,2458.2,39.81850479]
[1751368045426,9.127193,2458.3,2458.2,40.63190479]
[1751368046727,9.127193,2458.3,2458.2,99.23490479]
[1751368051234,8.313833,2458.3,2458.2,99.23490479]
[1751368051532,9.127193,2458.3,2458.2,99.23490479]
[1751368051834,8.313833,2458.3,2458.2,99.23490479]
[1751368053629,9.127193,2458.3,2458.2,99.23490479]
[1751368059744,8.313833,2458.3,2458.2,99.23490479]
[1751368060640,9.127193,2458.3,2458.2,99.23490479]
[1751368060941,8.313833,2458.3,2458.2,99.23490479]
[1751368061441,1.827499,2458.3,2458.2,99.23490479]
[1751368069348,1.827499,2458.3,2458.2,100.45494635]
[1751368074148,1.827499,2458.3,2458.2,99.23490479]
[1751368074750,1.827499,2458.3,2458.2,100.45494635]
[1751368075351,1.827499,2458.3,2458.2,99.23490479]
[1751368075847,1.827499,2458.3,2458.2,105.45494635]
[1751368078352,1.827499,2458.3,2458.2,64.32794635]
[1751368078548,1.827499,2458.3,2458.2,99.21190479]
[1751368082460,1.827499,2458.3,2458.2,100.83893167]
[1751368084253,1.827499,2458.3,2458.2,99.21190479]
[1751368086057,1.827499,2458.3,2458.2,100.83677104]
[1751368093466,1.827499,2458.3,2458.2,64.73277104]
[1751368093661,1.827499,2458.3,2458.2,99.47637104]
[1751368095067,1.827499,2458.3,2458.2,95.91795565]
[1751368095068,2.640859,2458.3,2458.2,95.91795565]
[1751368095263,4.853959,2458.3,2458.2,95.91795565]
[1751368095670,4.853959,2458.3,2458.2,94.699]
[1751368096164,4.853959,2458.3,2458.2,83.244]
[1751368096369,4.853959,2458.3,2458.2,95.5134]
[1751368096863,4.853959,2458.3,2458.2,58.603]
[1751368097069,4.853959,2458.3,2458.2,70.059]
[1751368097271,4.853959,2458.3,2458.2,94.7]
[1751368097761,4.853959,2458.3,2458.2,95.5134]
[1751368100571,4.853959,2458.3,2458.2,59.4164]
[1751368100770,4.853959,2458.3,2458.2,95.5094]
[1751368104477,4.853959,2458.3,2458.2,59.4164]
[1751368104679,4.853959,2458.3,2458.2,95.5104]
[1751368104874,4.853959,2458.3,2458.2,59.4164]
[1751368105074,3.542459,2458.3,2458.2,95.5104]
[1751368105679,3.542459,2458.3,2458.2,59.4164]
[1751368105979,3.542459,2458.3,2458.2,95.5104]
[1751368106278,2.729099,2458.3,2458.2,95.5104]
[1751368106879,1.827499,2458.3,2458.2,95.5104]
[1751368107083,1.827499,2458.3,2458.2,96.9539]
[1751368110083,1.827499,2458.3,2458.2,98.17285565]
[1751368110780,1.827499,2458.3,2458.2,96.9539]
[1751368114284,1.827499,2458.3,2458.2,98.17285565]
[1751368115687,1.827499,2458.3,2458.2,95.5064]
[1751368115987,2.723699,2458.3,2458.2,95.5064]
[1751368118584,1.827499,2458.3,2458.2,100.5064]
[1751368118881,1.827499,2458.3,2458.2,102.7178]
[1751368120483,1.827499,2458.3,2458.2,61.6278]
[1751368120786,1.827499,2458.3,2458.2,99.34148658]
[1751368123784,1.827499,2458.3,2458.2,97.7168]
[1751368124286,1.827499,2458.3,2458.2,98.93537593]
[1751368130592,1.827499,2458.3,2458.2,98.04927593]
[1751368132588,1.827499,2458.3,2458.2,72.06897593]
[1751368132793,1.827499,2458.3,2458.2,58.588]
[1751368132993,2.640859,2458.3,2458.2,95.4834]
[1751368133197,1.827499,2458.3,2458.2,95.4834]
[1751368133697,3.503259,2458.3,2458.2,95.4834]
[1751368134782,3.503259,2458.3,2458.2,95.4884]
[1751368135998,3.503259,2458.3,2458.2,0.8134]
[1751368136196,3.503259,2458.3,2458.2,95.4874]
[1751368136395,3.503259,2458.3,2458.2,96.70597593]
[1751368136593,2.689899,2458.3,2458.2,96.70597593]
[1751368136795,3.503259,2458.3,2458.2,85.25697593]
[1751368137099,3.503259,2458.3,2458.2,96.70597593]
[1751368137301,3.503259,2458.3,2458.2,2.03197593]
[1751368137598,3.503259,2458.3,2458.2,95.4874]
[1751368137998,3.503259,2458.3,2458.2,0.8134]
[1751368138299,2.689899,2458.3,2458.2,95.4904]
[1751368140498,3.503259,2458.3,2458.2,95.4904]
[1751368141903,3.503259,2458.3,2458.2,95.4924]
[1751368143902,3.503259,2458.3,2458.2,0.8134]
[1751368144113,3.503259,2458.3,2458.2,94.679]
[1751368144401,0.81348,2458.1,2458.0,0.81343]
[1751368144606,0.81348,2458.1,2458.0,95.49243]
[1751368145404,2.640979,2458.1,2458.0,95.49243]
[1751368146497,2.640979,2458.1,2458.0,11.45]
[1751368146700,0.81346,2458.0,2457.9,58.595]
[1751368146906,2.24376,2458.0,2457.9,94.679]
[1751368147298,2.24376,2458.0,2457.8,0.81353]
[1751368147299,0.8135,2457.9,2457.8,59.41153]
[1751368147499,2.51,2457.9,2457.8,94.681]
[1751368147992,2.51,2457.9,2457.8,94.682]
[1751368148702,2.51,2457.9,2457.8,95.49553]
[1751368150306,4.337499,2457.9,2457.8,94.682]
[1751368150603,4.337499,2457.9,2457.8,95.49553]
[1751368150901,4.337499,2457.9,2457.8,95.49853]
[1751368151102,4.337499,2457.9,2457.8,58.598]
[1751368151306,4.337499,2457.9,2457.8,94.684]
[1751368152007,4.337499,2457.9,2457.8,59.41153]
[1751368152202,4.337499,2457.9,2457.8,94.684]
[1751368152402,4.337499,2457.9,2457.8,95.49753]
[1751368153194,4.337499,2457.9,2457.8,59.41153]
[1751368153399,4.337499,2457.9,2457.8,95.49853]
[1751368153803,4.337499,2457.9,2457.8,97.83663479]
[1751368154209,4.337499,2457.9,2457.8,61.74963479]
[1751368154410,4.337499,2457.9,2457.8,97.83763479]
[1751368154597,4.337499,2457.9,2457.8,61.74963479]
[1751368154904,4.337499,2457.9,2457.8,97.83763479]
[1751368155201,4.337499,2457.9,2457.8,61.74963479]
[1751368155603,4.337499,2457.9,2457.8,97.83663479]
[1751368156508,4.337499,2457.9,2457.8,61.74963479]
[1751368156709,4.337499,2457.9,2457.8,97.83663479]
[1751368159005,4.337499,2457.9,2457.8,60.93610479]
[1751368159203,4.337499,2457.9,2457.8,97.02310479]
[1751368160814,4.337499,2457.9,2457.8,72.38810479]
[1751368161111,4.337499,2457.9,2457.8,97.02410479]
[1751368162014,4.337499,2457.9,2457.8,97.02210479]
[1751368164015,4.337499,2457.9,2457.8,97.88150479]
[1751368164616,4.337499,2457.9,2457.8,61.79550479]
[1751368164812,4.337499,2457.9,2457.8,97.88050479]
[1751368165716,4.337499,2457.9,2457.8,95.5424]
[1751368166410,4.337499,2457.9,2457.8,58.598]
[1751368166622,4.337499,2457.9,2457.8,94.683]
[1751368167213,4.337499,2457.9,2457.8,95.561]
[1751368168720,4.337499,2457.9,2457.8,94.683]
[1751368170318,2.640999,2457.9,2457.8,99.15763479]
[1751368170722,2.640999,2457.9,2457.8,98.34410479]
[1751368171220,2.640999,2457.9,2457.8,99.15763479]
[1751368171420,2.640999,2457.9,2457.8,98.34410479]
[1751368173429,2.640999,2457.9,2457.8,99.15763479]
[1751368191336,2.640999,2457.9,2457.8,96.81953]
[1751368192937,2.640999,2457.9,2457.8,99.15763479]
[1751368198738,1.827499,2457.9,2457.8,99.15763479]
[1751368199233,2.640999,2457.9,2457.8,71.371]
[1751368199437,2.640999,2457.9,2457.8,94.676]
[1751368200337,2.640999,2457.9,2457.8,95.48953]
[1751368201341,2.640999,2457.9,2457.8,94.676]
[1751368201540,2.640999,2457.9,2457.8,94.672]
[1751368202041,2.640999,2457.9,2457.8,58.598]
[1751368202244,2.640999,2457.9,2457.8,94.672]
[1751368202840,2.640999,2457.9,2457.8,95.48553]
[1751368203041,2.640999,2457.9,2457.8,94.672]
[1751368203243,0.81353,2457.8,2457.7,58.61]
[1751368203434,0.81366,2457.4,2457.3,2.03300877]
[1751368203638,0.81366,2457.4,2457.3,97.64070877]
[1751368203940,0.81366,2457.5,2457.4,0.81363]
[1751368204148,0.81366,2457.5,2457.4,25.44066]
[1751368205236,2.641159,2457.5,2457.4,25.44066]
[1751368210750,2.641159,2457.5,2457.4,0.81366]
[1751368210942,0.81366,2457.4,2457.3,62.68548479]
[1751368211143,0.81366,2457.4,2457.3,98.76148479]
[1751368211550,0.81366,2457.4,2457.3,100.19118479]
[1751368212850,0.81366,2457.4,2457.3,97.85308]
[1751368213044,0.81366,2457.4,2457.3,100.19118479]
[1751368213650,0.81366,2457.4,2457.3,64.11518479]
[1751368213949,0.81366,2457.4,2457.3,100.19118479]
[1751368215152,2.641159,2457.4,2457.3,100.19118479]
[1751368217154,1.827499,2457.4,2457.3,100.19118479]
[1751368217454,2.641159,2457.4,2457.3,100.19118479]
[1751368220157,2.641159,2457.4,2457.3,64.11518479]
[1751368220454,2.641159,2457.4,2457.3,100.19118479]
[1751368222758,1.827499,2457.4,2457.3,100.19118479]
[1751368223349,2.641159,2457.4,2457.3,64.11518479]
[1751368223550,1.827499,2457.4,2457.3,100.18618479]
[1751368230466,1.827499,2457.4,2457.3,101.40553356]
[1751368232764,1.827499,2457.4,2457.3,65.33453356]
[1751368232967,1.827499,2457.4,2457.3,101.40253356]
[1751368233266,1.827499,2457.4,2457.3,101.40153356]
[1751368237371,1.827499,2457.4,2457.3,101.39953356]
[1751368237973,1.827499,2457.4,2457.3,65.33453356]
[1751368238173,1.827499,2457.4,2457.3,101.39953356]
[1751368238976,1.827499,2457.4,2457.3,65.33453356]
[1751368239274,1.827499,2457.4,2457.3,101.39853356]
[1751368241376,1.827499,2457.4,2457.3,65.33453356]
[1751368241577,1.827499,2457.4,2457.3,101.39753356]
[1751368242379,1.827499,2457.4,2457.3,65.33453356]
[1751368242773,1.827499,2457.4,2457.3,101.39753356]
[1751368243180,1.827499,2457.4,2457.3,65.33453356]
[1751368243781,1.827499,2457.4,2457.3,100.17818479]
[1751368245575,1.827499,2457.4,2457.3,64.11518479]
[1751368245776,1.827499,2457.4,2457.3,100.17718479]
[1751368245974,1.827499,2457.4,2457.3,75.55918479]
[1751368246174,1.827499,2457.4,2457.3,100.17718479]
[1751368246375,1.827499,2457.4,2457.3,101.39653356]
[1751368246579,1.827499,2457.4,2457.3,65.33453356]
[1751368246779,1.827499,2457.4,2457.3,100.17718479]
[1751368247180,1.827499,2457.4,2457.3,101.39553356]
[1751368247780,1.827499,2457.4,2457.3,64.62844205]
[1751368247980,1.827499,2457.4,2457.3,100.68944205]
[1751368248280,1.827499,2457.4,2457.3,64.62844205]
[1751368248581,1.827499,2457.4,2457.3,100.68944205]
[1751368248786,1.827499,2457.4,2457.3,64.62844205]
[1751368248970,1.827499,2457.4,2457.3,99.25974205]
[1751368249471,1.827499,2457.4,2457.3,98.04039328]
[1751368249671,1.827499,2457.4,2457.3,61.97939328]
[1751368250080,1.827499,2457.4,2457.3,98.04039328]
[1751368250481,1.827499,2457.4,2457.3,99.25974205]
[1751368252485,1.827499,2457.4,2457.3,63.19874205]
[1751368252784,1.827499,2457.4,2457.3,99.25474205]
[1751368254986,1.827499,2457.4,2457.3,63.19874205]
[1751368255184,1.827499,2457.4,2457.3,99.25374205]
[1751368255886,1.827499,2457.4,2457.3,63.19874205]
[1751368256087,1.827499,2457.4,2457.3,99.25374205]
[1751368256985,1.827499,2457.4,2457.3,99.25274205]
[1751368259586,1.827499,2457.4,2457.3,100.56894205]
[1751368259792,1.827499,2457.4,2457.3,99.34959328]
[1751368260189,1.827499,2457.4,2457.3,99.34859328]
[1751368261793,1.827499,2457.4,2457.3,63.29559328]
[1751368262090,1.827499,2457.4,2457.3,99.34859328]
[1751368262692,1.827499,2457.4,2457.3,99.25303636]
[1751368263086,1.827499,2457.4,2457.3,63.20003636]
[1751368263286,1.827499,2457.4,2457.3,99.25303636]
[1751368263791,1.827499,2457.4,2457.3,99.25203636]
[1751368264495,1.827499,2457.4,2457.3,3.66633636]
[1751368264691,2.641159,2457.4,2457.3,97.11069328]
[1751368264891,3.568959,2457.4,2457.3,97.11069328]
[1751368265794,3.568959,2457.4,2457.3,2.44569328]
[1751368265993,3.568959,2457.4,2457.3,97.11069328]
[1751368266996,3.568959,2457.4,2457.3,2.44569328]
[1751368267199,3.568959,2457.4,2457.3,97.11270328]
[1751368267697,3.568959,2457.4,2457.3,60.24701328]
[1751368267903,4.971859,2457.4,2457.3,95.47969]
[1751368268091,4.971859,2457.4,2457.3,94.666]
[1751368268592,4.971859,2457.4,2457.3,95.47969]
[1751368269991,4.971859,2457.4,2457.3,0.81369]
[1751368270192,4.971859,2457.4,2457.3,94.669]
[1751368270391,4.971859,2457.4,2457.3,0.81369]
[1751368270597,0.81369,2457.3,2457.2,1.63201328]
[1751368270792,0.81369,2457.3,2457.2,97.11374328]
[1751368271194,0.81369,2457.3,2457.2,2.44574328]
[1751368271498,0.81373,2457.2,2457.1,2.44575328]
[1751368271691,1.69933,2457.2,2457.1,97.11375328]
[1751368271892,1.69933,2457.2,2457.1,94.668]
[1751368272093,1.69933,2457.2,2457.1,95.48176]
[1751368272292,0.81376,2457.1,2457.0,3.66642636]
[1751368272488,0.81376,2457.1,2457.0,1.22064308]
[1751368272798,0.81379,2457.0,2456.9,2.03444308]
[1751368272997,1.68409,2457.0,2456.9,38.08644308]
[1751368273199,1.68409,2457.0,2456.9,36.8658]
[1751368273602,1.68409,2457.0,2456.9,36.052]
[1751368273799,1.68409,2457.0,2456.9,37.68401328]
[1751368273996,1.68409,2457.0,2456.9,38.49784328]
[1751368275295,3.511589,2457.0,2456.9,38.49784328]
[1751368275896,3.511589,2457.0,2456.9,3.14642229]
[1751368276100,3.511589,2457.0,2456.9,39.19742229]
[1751368277200,3.511589,2457.0,2456.9,3.14642229]
[1751368277398,3.511589,2457.0,2456.9,36.86783]
[1751368277597,3.511589,2457.0,2456.9,39.20042229]
[1751368277894,2.697799,2457.0,2456.9,39.20042229]
[1751368278299,2.697799,2457.0,2456.9,39.19942229]
[1751368278799,2.697799,2457.0,2456.9,3.14642229]
[1751368278999,2.697799,2457.0,2456.9,39.20042229]
[1751368279504,3.511589,2457.0,2456.9,39.20042229]
[1751368280200,3.511589,2457.0,2456.9,3.14642229]
[1751368280401,3.511589,2457.0,2456.9,39.19942229]
[1751368280903,3.511589,2457.0,2456.9,3.14642229]
[1751368281103,3.511589,2457.0,2456.9,39.19942229]
[1751368284508,2.697799,2457.0,2456.9,39.19942229]
[1751368284708,3.511589,2457.0,2456.9,39.19942229]
[1751368286611,2.697799,2457.0,2456.9,39.19942229]
[1751368286907,3.511589,2457.0,2456.9,39.19942229]
[1751368290012,10.03039129,2457.0,2456.6,2.13394308]
[1751368290312,1.67965,2456.9,2456.8,0.81386]
[1751368290608,42.47965,2456.9,2456.8,25.42386]
[1751368290806,42.47965,2456.9,2456.8,36.86286]
[1751368294307,42.47965,2456.9,2456.8,0.81386]
[1751368294514,42.47965,2456.9,2456.8,36.86286]
[1751368295208,44.307149,2456.9,2456.8,36.86286]
[1751368296208,0.81389,2456.8,2456.7,0.81387]
[1751368296515,0.81389,2456.8,2456.7,36.86287]
[1751368297817,0.81389,2456.8,2456.7,38.49604693]
[1751368299516,0.81389,2456.8,2456.7,37.68117693]
[1751368299716,0.81389,2456.8,2456.7,38.49506693]
[1751368299918,0.81389,2456.8,2456.7,37.68117693]
[1751368300115,2.44706693,2456.8,2456.7,11.439]
[1751368300312,0.81389,2456.7,2456.6,2.94787308]
[1751368300518,0.81389,2456.7,2456.6,39.81412001]
[1751368301019,0.81389,2456.7,2456.6,4.58105001]
[1751368301218,0.81389,2456.7,2456.6,38.18094308]
[1751368301415,0.81389,2456.7,2456.0,7.31133514]
[1751368301416,8.26635386,2456.7,2455.9,3.25412684]
[1751368301724,2.44720693,2456.3,2456.2,11.439]
[1751368302018,2.44720693,2456.3,2456.2,36.047]
[1751368302619,0.81413,2456.0,2455.9,0.7012]
[1751368302821,2.44730693,2456.0,2455.9,36.047]
[1751368303023,0.81419,2455.8,2455.7,2.81712]
[1751368303325,2.44736693,2455.8,2455.7,2.81712]
[1751368303619,2.44736693,2455.8,2455.7,97.50112]
[1751368303823,0.81419,2455.8,2455.7,86.06312]
[1751368304016,0.81419,2455.8,2455.7,97.50312]
[1751368304416,0.81419,2455.8,2455.7,96.6889]
[1751368304722,0.81419,2455.8,2455.7,97.50312]
[1751368305015,0.81419,2455.8,2455.7,96.6889]
[1751368305323,2.641689,2455.8,2455.7,96.6889]
[1751368305516,2.641689,2455.8,2455.7,2.0029]
[1751368306018,43.441689,2455.8,2455.7,96.6889]
[1751368306324,43.441689,2455.8,2455.7,2.0029]
[1751368306518,43.441689,2455.8,2455.7,96.6959]
[1751368306920,43.441689,2455.8,2455.7,60.6449]
[1751368307121,43.441689,2455.8,2455.7,96.6979]
[1751368307415,43.441689,2455.8,2455.7,2.0029]
[1751368307922,43.441689,2455.8,2455.7,96.6979]
[1751368308519,43.441689,2455.8,2455.7,72.0859]
[1751368308821,43.441689,2455.8,2455.7,97.51212]
[1751368309122,43.441689,2455.8,2455.7,2.81712]
[1751368309622,43.441689,2455.8,2455.7,2.0029]
[1751368309923,43.441689,2455.8,2455.7,96.7039]
[1751368310522,43.441689,2455.8,2455.7,2.0029]
[1751368310724,43.441689,2455.8,2455.7,96.7039]
[1751368311424,43.441689,2455.8,2455.7,2.0029]
[1751368311626,43.441689,2455.8,2455.7,96.7029]
[1751368311826,43.441689,2455.8,2455.7,96.7079]
[1751368312625,43.441689,2455.8,2455.7,2.0029]
[1751368312933,43.441689,2455.8,2455.7,96.7079]
[1751368313122,43.441689,2455.8,2455.7,96.7029]
[1751368313929,43.441689,2455.8,2455.7,2.0029]
[1751368314626,45.77690515,2455.8,2455.7,96.7029]
[1751368315624,45.77690515,2455.8,2455.7,2.0029]
[1751368315823,45.77690515,2455.8,2455.7,96.7049]
[1751368316734,45.77690515,2455.8,2455.7,2.0029]
[1751368317023,45.77690515,2455.8,2455.5,58.65]
[1751368317024,0.81426,2455.6,2455.5,58.65]
[1751368317229,0.81436,2455.3,2455.2,2.0078]
[1751368317429,0.81436,2455.3,2455.2,96.7098]
[1751368317626,3.14957615,2455.3,2455.2,96.7098]
[1751368317826,3.14957615,2455.3,2455.2,97.52419]
[1751368318024,3.14957615,2455.3,2455.2,96.85389]
[1751368318430,3.14957615,2455.3,2455.2,96.0435]
[1751368319230,0.81445,2455.1,2454.8,2.70661]
[1751368319431,0.81445,2455.1,2455.0,2.20336]
[1751368319432,3.14966615,2455.1,2455.0,2.20336]
[1751368319831,3.14966615,2455.1,2455.0,38.25736]
[1751368320031,3.14966615,2455.1,2455.0,2.20336]
[1751368320233,2.641949,2455.1,2455.0,2.20336]
[1751368320532,2.641949,2455.1,2455.0,96.77]
[1751368320833,2.641949,2455.1,2455.0,60.717]
[1751368321031,2.641949,2455.1,2455.0,94.709]
[1751368321530,0.81446,2455.0,2454.9,0.6751]
[1751368321726,0.81446,2455.0,2454.9,85.286]
[1751368321931,0.81446,2455.0,2454.9,2.013]
[1751368322133,0.81446,2455.0,2454.9,96.727]
[1751368323032,0.81446,2455.0,2454.9,2.82749]
[1751368323229,0.81446,2455.0,2454.9,96.727]
[1751368324330,0.81446,2455.0,2454.9,2.013]
[1751368324534,0.81446,2455.0,2454.9,97.54749]
[1751368324735,0.81446,2455.0,2454.9,97.54949]
[1751368324935,1.827499,2455.1,2455.0,0.81446]
[1751368325142,2.641919,2455.1,2455.0,1.3722]
[1751368325333,2.641919,2455.1,2455.0,2.18666]
[1751368325631,4.97713515,2455.1,2455.0,11.442]
[1751368325934,4.97713515,2455.1,2455.0,36.059]
[1751368326432,0.81452,2454.8,2454.7,0.81454]
[1751368326635,0.81459,2454.7,2454.6,0.81456]
[1751368326934,43.94980615,2454.7,2454.6,95.53656]
[1751368327131,43.94980615,2454.7,2454.6,96.90876]
[1751368327436,43.94980615,2454.7,2454.6,72.29176]
[1751368327734,43.94980615,2454.7,2454.6,96.90776]
[1751368328335,43.13521615,2454.7,2454.6,96.90776]
[1751368328736,43.13521615,2454.7,2454.6,2.18676]
[1751368328935,43.13521615,2454.7,2454.6,96.91676]
[1751368330136,44.96271515,2454.7,2454.6,96.91676]
[1751368330329,44.96271515,2454.7,2454.6,2.18676]
[1751368330531,44.96271515,2454.7,2454.6,96.92176]
[1751368330730,42.627499,2454.7,2454.6,96.92176]
[1751368342647,43.442059,2454.7,2454.6,59.48756]
[1751368342944,43.442059,2454.7,2454.6,95.55056]
[1751368343145,44.159159,2454.7,2454.6,95.55056]
[1751368343352,44.159159,2454.7,2454.6,59.48756]
[1751368343549,44.159159,2454.7,2454.6,95.54656]
[1751368343746,44.159159,2454.7,2454.6,70.92856]
[1751368344049,44.159159,2454.7,2454.6,95.54756]
[1751368344649,44.159159,2454.7,2454.6,58.674]
[1751368344850,44.159159,2454.7,2454.6,94.733]
[1751368345449,0.81462,2454.6,2454.5,0.81461]
[1751368345643,0.81462,2454.6,2454.5,95.55161]
[1751368345852,0.81465,2454.5,2454.4,0.81463]
[1751368346051,2.33521615,2454.5,2454.4,95.55263]
[1751368346649,3.14983615,2454.5,2454.4,95.55263]
[1751368346850,2.33521615,2454.5,2454.4,95.55263]
[1751368347548,3.14983615,2454.5,2454.4,95.55263]
[1751368347745,2.33521615,2454.5,2454.4,95.55263]
[1751368348250,2.33521615,2454.5,2454.4,0.81463]
[1751368348451,3.14983615,2454.5,2454.4,0.81463]
[1751368348653,3.14983615,2454.5,2454.4,95.55463]
[1751368348949,3.14983615,2454.5,2454.4,70.93563]
[1751368349154,3.14983615,2454.5,2454.4,94.74]
[1751368350154,4.97733515,2454.5,2454.4,95.55466]
[1751368350446,4.97733515,2454.5,2454.4,94.74]
[1751368350753,4.97733515,2454.5,2454.4,58.679]
[1751368350949,4.97733515,2454.5,2454.4,0.81466]
[1751368351256,0.81469,2454.4,2454.3,0.81467]
[1751368351451,1.53519,2454.4,2454.3,84.11567]
[1751368351756,1.53519,2454.4,2454.3,0.81467]
[1751368351951,1.53519,2454.4,2454.3,58.681]
[1751368352249,1.53519,2454.4,2454.3,95.55869]
[1751368354053,0.7205,2454.4,2454.3,95.55869]
[1751368354459,1.53516,2454.4,2454.3,59.49569]
[1751368354749,0.7205,2454.4,2454.3,95.55769]
[1751368355258,2.547999,2454.4,2454.3,59.49569]
[1751368355955,2.547999,2454.4,2454.3,95.55869]
[1751368356254,3.362659,2454.4,2454.3,95.55869]
[1751368356751,3.362659,2454.4,2454.3,70.93869]
[1751368357057,2.547999,2454.4,2454.3,95.55869]
[1751368358254,1.827499,2454.4,2454.3,95.55869]
[1751368358756,1.827499,2454.4,2454.3,96.86939]
[1751368367959,2.642159,2454.4,2454.3,95.55969]
[1751368368162,4.055559,2454.4,2454.3,95.55969]
[1751368369562,4.055559,2454.4,2454.3,59.49569]
[1751368369764,4.055559,2454.4,2454.3,95.55969]
[1751368370564,3.240899,2454.4,2454.3,59.49569]
[1751368370774,4.055559,2454.4,2454.3,94.745]
[1751368371264,4.055559,2454.4,2454.3,70.125]
[1751368371559,4.055559,2454.4,2454.3,94.745]
[1751368372466,4.055559,2454.4,2454.3,95.55969]
[1751368372964,4.055559,2454.4,2454.3,94.745]
[1751368373164,0.81472,2454.3,2454.1,0.6717]
[1751368373365,0.81472,2454.3,2454.2,95.56769]
[1751368374059,0.81472,2454.3,2454.2,70.94769]